bitfinex-derivatives/quotes_SOLF0:USTF0_20260202
["timestamp","ask_amount","ask_price","bid_price","bid_amount"]
[1769990678102,8.9945,100.16,100.05,406.13346492]
[1769990678398,199.54913914,100.18,100.06,140.047]
[1769990678603,59.66763914,100.18,100.08,27.37106492]
[1769990678804,199.54933914,100.18,100.07,238.62]
[1769990678997,59.66763914,100.18,100.07,238.62]
[1769990679197,68.66023914,100.18,100.08,27.37106492]
[1769990679900,59.66763914,100.18,100.08,36.37206492]
[1769990680104,59.66011663,100.21,100.09,378.5837]
[1769990680501,59.66011663,100.21,100.02,158.1172]
[1769990680502,59.66011663,100.21,100.11,27.37106492]
[1769990680809,199.46059615,100.24,100.11,167.34976492]
[1769990681401,349.12,100.27,100.12,8.9974]
[1769990681402,59.66179615,100.22,100.12,8.9974]
[1769990681807,59.66179615,100.22,100.12,139.9646]
[1769990682005,8.9899,100.21,100.1,238.64]
[1769990682205,148.8301,100.21,100.1,238.64]
[1769990682403,8.9907,100.2,100.1,247.6392]
[1769990682701,199.50199615,100.21,100.1,247.6392]
[1769990682702,139.8353,100.22,100.1,378.8123]
[1769990682901,59.63615421,100.23,100.12,167.33196492]
[1769990683098,59.63615421,100.26,100.15,167.29216492]
[1769990683401,59.63615421,100.29,100.18,27.37106492]
[1769990683599,59.63615421,100.29,100.19,139.8633]
[1769990683798,59.63615421,100.32,100.22,139.824]
[1769990684014,59.63615421,100.32,100.22,238.96]
[1769990684209,139.8007,100.24,100.14,55.35641189]
[1769990684513,139.78,100.26,100.14,55.35641189]
[1769990684703,139.7975,100.24,100.14,55.35641189]
[1769990685108,139.7819,100.26,100.14,55.35641189]
[1769990685298,8.9864,100.25,100.14,55.35641189]
[1769990685503,139.8119,100.23,100.14,55.35641189]
[1769990685699,139.779,100.26,100.14,55.35641189]
[1769990685898,139.7848,100.25,100.14,55.35641189]
[1769990686505,139.7426,100.28,100.17,55.60874345]
[1769990687109,8.983,100.29,100.19,55.60874345]
[1769990687410,139.7005,100.31,100.16,55.60874345]
[1769990687603,148.7852,100.24,100.16,55.60874345]
[1769990687913,139.8144,100.23,100.16,55.60874345]
[1769990689006,27.37106492,100.29,100.16,55.60874345]
[1769990689211,139.7842,100.25,100.16,55.60874345]
[1769990689614,148.785,100.24,100.16,55.60874345]
[1769990690408,148.7847,100.24,100.16,55.60874345]
[1769990690806,148.8012,100.23,100.16,55.60874345]
[1769990691008,8.9885,100.23,100.16,55.60874345]
[1769990692213,8.9863,100.25,100.16,55.60874345]
[1769990692510,139.7842,100.25,100.16,55.60874345]
[1769990692711,148.785,100.24,100.16,55.60874345]
[1769990693306,139.8255,100.22,100.13,55.69304265]
[1769990693909,8.9908,100.2,100.13,55.69304265]
[1769990694118,148.8446,100.2,100.13,55.69304265]
[1769990694308,139.8538,100.2,100.13,55.69304265]
[1769990694805,139.8962,100.17,100.1,55.70182091]
[1769990695405,139.8546,100.2,100.1,55.70182091]
[1769990695606,139.883,100.18,100.1,55.70182091]
[1769990696011,8.9934,100.17,100.1,55.70182091]
[1769990696206,139.8966,100.17,100.1,55.70182091]
[1769990696410,139.8796,100.19,100.1,55.70182091]
[1769990696708,139.799,100.24,100.15,55.69537817]
[1769990697114,139.7864,100.25,100.15,55.69537817]
[1769990697610,8.988,100.23,100.15,55.69537817]
[1769990698615,148.7738,100.25,100.15,64.69017817]
[1769990698812,139.7557,100.27,100.16,55.72403571]
[1769990699010,139.7569,100.27,100.17,64.71663571]
[1769990699315,449.361,100.29,100.19,55.72403571]
[1769990699815,139.7419,100.28,100.19,55.72403571]
[1769990700315,27.37106492,100.28,100.16,55.72403571]
[1769990700517,139.803,100.24,100.16,55.72403571]
[1769990700712,139.7833,100.26,100.16,55.72403571]
[1769990700911,139.7293,100.29,100.18,55.7463115]
[1769990701112,139.6724,100.33,100.23,55.7463115]
[1769990701308,8.9801,100.32,100.23,55.7463115]
[1769990701511,139.6867,100.32,100.23,55.7463115]
[1769990701714,139.6158,100.38,100.23,55.7463115]
[1769990701715,8.9816,100.3,100.23,55.7463115]
[1769990701912,139.7024,100.31,100.21,55.7463115]
[1769990701913,139.7131,100.31,100.21,55.7463115]
[1769990702118,139.7419,100.28,100.21,55.7463115]
[1769990702420,139.7556,100.27,100.21,55.7463115]
[1769990702625,139.7427,100.28,100.21,55.7463115]
[1769990702919,8.9845,100.27,100.21,55.7463115]
[1769990703120,8.9845,100.27,100.18,55.75235821]
[1769990703513,279.5459,100.26,100.12,55.75235821]
[1769990703712,29.75,100.22,100.09,55.75235821]
[1769990703912,8.994,100.17,100.09,55.75235821]
[1769990704320,139.8797,100.19,100.09,55.75235821]
[1769990704517,139.943,100.14,100.06,55.75235821]
[1769990704716,139.9628,100.13,100.06,55.75235821]
[1769990705019,148.9492,100.13,100.06,55.75235821]
[1769990705217,139.9659,100.12,100.03,55.73459712]
[1769990705417,139.9872,100.11,100.03,55.73459712]
[1769990705719,139.9098,100.16,100.06,55.73459712]
[1769990705920,490.9953,100.17,100.07,55.73459712]
[1769990706219,139.9114,100.16,100.08,55.73459712]
[1769990706414,139.9718,100.12,100.02,67.35364843]
[1769990706611,9.0,100.1,100.02,55.73459712]
[1769990706813,139.9368,100.15,100.04,55.80651528]
[1769990707015,139.9112,100.16,100.06,55.80651528]
[1769990707217,27.37106492,100.22,100.09,55.80651528]
[1769990707419,139.8543,100.2,100.11,55.80651528]
[1769990707624,148.8442,100.2,100.11,55.80651528]
[1769990707824,139.8813,100.18,100.11,55.80651528]
[1769990708422,139.9107,100.16,100.08,55.80661886]
[1769990708723,139.8828,100.18,100.08,55.80661886]
[1769990709025,139.8536,100.2,100.11,55.79585231]
[1769990709220,139.8535,100.2,100.11,55.79585231]
[1769990709426,8.9917,100.19,100.11,55.79585231]
[1769990710124,139.8236,100.23,100.11,67.41490362]
[1769990710317,139.7908,100.25,100.13,139.9479]
[1769990710522,148.7774,100.25,100.15,55.79585231]
[1769990710724,139.7436,100.28,100.18,55.69944937]
[1769990710922,139.743,100.28,100.18,55.69944937]
[1769990711118,139.7559,100.27,100.18,55.69944937]
[1769990711319,139.7145,100.3,100.19,195.56434937]
[1769990711520,518.37536492,100.35,100.21,55.69944937]
[1769990711730,139.743,100.28,100.18,67.31850068]
[1769990711929,139.7287,100.29,100.18,67.31850068]
[1769990712120,27.37106492,100.32,100.19,55.69944937]
[1769990712121,139.7621,100.27,100.19,55.69944937]
[1769990712320,27.37106492,100.26,100.15,67.31850068]
[1769990712525,139.827,100.22,100.15,55.69944937]
[1769990712726,27.37106492,100.26,100.15,55.69944937]
[1769990712727,139.8045,100.24,100.15,55.69944937]
[1769990713327,8.9874,100.24,100.15,67.31850068]
[1769990713526,139.7562,100.27,100.16,55.66828424]
[1769990713724,148.6961,100.3,100.2,55.66828424]
[1769990713926,139.7309,100.29,100.2,55.66828424]
[1769990714528,169.3838,100.36,100.2,55.66828424]
[1769990714529,139.7255,100.3,100.2,55.66828424]
[1769990714729,139.7705,100.26,100.2,55.66828424]
[1769990714927,8.9839,100.28,100.17,55.59672749]
[1769990715226,139.7711,100.26,100.17,55.59672749]
[1769990715427,139.7565,100.27,100.17,55.59672749]
[1769990716230,139.6585,100.34,100.17,55.59672749]
[1769990716231,27.37106492,100.31,100.18,55.59672749]
[1769990716435,139.7278,100.29,100.18,55.59672749]
[1769990716728,8.9821,100.3,100.2,55.54973556]
[1769990717127,139.6731,100.33,100.22,55.54973556]
[1769990717335,139.6635,100.34,100.23,55.54973556]
[1769990717522,139.6312,100.36,100.26,55.54973556]
[1769990717729,139.6164,100.37,100.26,55.54973556]
[1769990717929,139.6896,100.32,100.23,67.16878687]
[1769990718135,139.7002,100.31,100.23,55.54973556]
[1769990718433,139.7581,100.27,100.19,55.54973556]
[1769990718633,139.7468,100.28,100.19,55.54973556]
[1769990718830,139.74,100.29,100.19,55.54973556]
[1769990719031,139.6866,100.32,100.21,55.54234736]
[1769990719337,139.728,100.29,100.21,55.54234736]
[1769990719539,139.7557,100.27,100.16,8.9937]
[1769990719835,139.7394,100.29,100.17,55.54234736]
[1769990720026,139.7394,100.29,100.18,55.54234736]
[1769990720228,8.9829,100.29,100.19,55.54234736]
[1769990720425,40.77178909,100.3,100.19,55.54234736]
[1769990720426,139.7149,100.3,100.19,55.54234736]
[1769990720628,139.7316,100.29,100.19,55.54234736]
[1769990720836,180.44438909,100.33,100.19,55.54234736]
[1769990721028,180.44438909,100.33,100.2,55.56247573]
[1769990721029,40.77178909,100.33,100.2,55.56247573]
[1769990721234,139.679,100.33,100.22,55.56247573]
[1769990721433,139.6588,100.34,100.22,55.56247573]
[1769990721636,139.6306,100.36,100.25,55.56247573]
[1769990721936,139.6596,100.34,100.26,55.56247573]
[1769990722137,139.6879,100.32,100.22,55.56247573]
[1769990722332,139.6726,100.33,100.22,55.56247573]
[1769990722638,139.6731,100.33,100.23,55.56247573]
[1769990722933,148.6527,100.33,100.23,55.56247573]
[1769990723132,139.6863,100.32,100.23,55.56247573]
[1769990723334,8.9801,100.32,100.23,55.56247573]
[1769990723734,148.638,100.34,100.23,64.54987573]
[1769990723936,139.6734,100.33,100.23,55.56247573]
[1769990724136,139.6597,100.34,100.23,55.56247573]
[1769990724942,139.6595,100.34,100.24,55.60264539]
[1769990725242,139.674,100.33,100.24,55.60264539]
[1769990725431,8.9793,100.33,100.24,55.60264539]
[1769990725632,139.6567,100.35,100.24,55.60264539]
[1769990725829,139.6597,100.34,100.24,55.60264539]
[1769990726435,8.9789,100.33,100.24,55.60264539]
[1769990728233,40.77178909,100.3,100.17,55.60268177]
[1769990728435,139.7439,100.28,100.18,55.60268177]
[1769990728641,8.9844,100.27,100.18,55.60268177]
[1769990729442,8.983,100.29,100.19,55.601928]
[1769990729838,8.9795,100.33,100.23,55.601928]
[1769990730445,8.9778,100.35,100.26,55.601928]
[1769990730736,148.6234,100.35,100.26,55.601928]
[1769990731046,139.6255,100.37,100.26,55.601928]
[1769990731236,8.9764,100.36,100.26,55.601928]
[1769990731438,139.6585,100.34,100.26,55.601928]
[1769990731738,8.9742,100.39,100.3,55.62642048]
[1769990731941,8.9742,100.39,100.3,64.60772048]
[1769990732239,139.6047,100.38,100.3,55.62642048]
[1769990732439,139.6305,100.36,100.26,55.62642048]
[1769990732747,139.6729,100.33,100.26,55.62642048]
[1769990732946,8.9802,100.32,100.23,55.64397846]
[1769990733442,139.6871,100.32,100.23,55.64397846]
[1769990733637,139.7179,100.3,100.23,55.64397846]
[1769990733832,139.7272,100.3,100.2,55.64397846]
[1769990734034,8.9836,100.28,100.2,55.64397846]
[1769990734443,139.7429,100.28,100.2,55.64397846]
[1769990734643,8.9846,100.27,100.2,55.64397846]
[1769990734833,66.54,100.29,100.2,55.64397846]
[1769990735239,75.5231,100.29,100.2,55.64397846]
[1769990735440,66.54,100.29,100.21,55.6318454]
[1769990735742,206.2698,100.29,100.21,55.6318454]
[1769990736436,139.7696,100.26,100.18,55.6318454]
[1769990736639,139.7464,100.28,100.18,55.6318454]
[1769990736843,148.7423,100.27,100.18,55.6318454]
[1769990737042,8.9849,100.27,100.18,55.6318454]
[1769990737239,66.54,100.29,100.19,139.8661]
[1769990737437,66.54,100.29,100.21,55.69376353]
[1769990737642,66.54,100.29,100.19,278.31178909]
[1769990737643,66.54,100.29,100.24,55.69375265]
[1769990737843,455.6063,100.35,100.24,55.69375265]
[1769990738042,8.9768,100.36,100.26,22.42375265]
[1769990738349,139.678,100.33,100.23,22.42375265]
[1769990738544,148.6815,100.31,100.23,22.42375265]
[1769990738746,139.6845,100.33,100.23,22.42375265]
[1769990738944,139.714,100.3,100.23,22.42375265]
[1769990739145,139.7119,100.31,100.23,22.42375265]
[1769990739347,139.6175,100.37,100.26,22.50176887]
[1769990739542,8.9751,100.38,100.29,22.50176887]
[1769990739849,139.6041,100.38,100.29,22.50176887]
[1769990740046,8.9721,100.41,100.29,22.50176887]
[1769990740347,139.5314,100.44,100.33,22.50176887]
[1769990740540,139.5756,100.4,100.33,22.50176887]
[1769990740744,148.5485,100.4,100.33,22.50176887]
[1769990741554,139.6096,100.38,100.3,22.50840416]
[1769990741750,139.5875,100.4,100.3,22.50840416]
[1769990741953,139.5661,100.41,100.32,22.50840416]
[1769990742459,148.5476,100.4,100.32,22.50840416]
[1769990742750,139.5611,100.41,100.32,22.50840416]
[1769990742960,139.5462,100.43,100.32,22.50840416]
[1769990743258,489.6822,100.49,100.33,22.49638758]
[1769990743259,139.525,100.44,100.33,22.49638758]
[1769990743554,148.518,100.42,100.33,22.49638758]
[1769990743756,40.77178909,100.46,100.33,22.49638758]
[1769990744053,139.5601,100.42,100.3,22.49638758]
[1769990744254,139.5797,100.4,100.3,22.49638758]
[1769990744454,141.21761303,100.47,100.3,22.49638758]
[1769990744455,148.5775,100.38,100.3,22.49638758]
[1769990745051,8.9747,100.38,100.3,22.49638758]
[1769990745254,148.578,100.38,100.3,22.49638758]
[1769990745760,139.6415,100.36,100.27,22.49265143]
[1769990746057,139.6035,100.38,100.27,22.49265143]
[1769990746252,17.9419,100.42,100.27,22.49265143]
[1769990746460,139.6246,100.37,100.27,22.49265143]
[1769990746962,139.5754,100.4,100.29,22.49265263]
[1769990747450,40.77178909,100.43,100.29,22.49265263]
[1769990747451,8.9748,100.38,100.29,22.49265263]
[1769990748453,139.5913,100.39,100.29,22.49265263]
[1769990748661,139.6306,100.36,100.29,22.49265263]
[1769990749054,139.6169,100.37,100.29,22.49265263]
[1769990749261,139.6444,100.35,100.25,22.49112597]
[1769990750561,139.6304,100.36,100.26,22.49112597]
[1769990750960,8.9778,100.35,100.26,22.49112597]
[1769990751359,139.6062,100.38,100.27,22.47724654]
[1769990751760,139.6062,100.38,100.27,34.3799365]
[1769990752054,139.6372,100.36,100.25,34.3799365]
[1769990752258,139.6728,100.33,100.25,22.47724654]
[1769990752460,139.7073,100.31,100.22,22.47724654]
[1769990752654,139.6705,100.34,100.22,34.3799365]
[1769990752857,488.8234,100.36,100.24,22.47600226]
[1769990753065,8.9796,100.33,100.25,22.47600226]
[1769990753256,139.6813,100.33,100.25,22.47600226]
[1769990753457,488.811,100.36,100.25,22.47600226]
[1769990753662,8.9773,100.35,100.27,22.47600226]
[1769990753861,139.6417,100.36,100.27,22.47600226]
[1769990754366,58.71828909,100.4,100.27,22.47600226]
[1769990754367,8.9781,100.34,100.27,22.47600226]
[1769990754557,139.6414,100.36,100.24,22.47260103]
[1769990754760,8.9815,100.31,100.24,22.47260103]
[1769990754956,139.6655,100.34,100.24,22.47260103]
[1769990755368,558.1708,100.43,100.25,22.47260103]
[1769990755369,139.6393,100.36,100.25,22.47260103]
[1769990755558,139.6393,100.36,100.26,22.47260103]
[1769990755755,349.36,100.38,100.26,22.47260103]
[1769990755756,8.979,100.33,100.26,22.47260103]
[1769990756264,8.9804,100.32,100.26,22.47260103]
[1769990756465,139.6487,100.35,100.26,22.47260103]
[1769990756665,139.6748,100.33,100.26,22.47260103]
[1769990757070,139.7178,100.3,100.21,11.90268996]
[1769990757363,139.7178,100.3,100.2,22.47724378]
[1769990757761,139.7178,100.3,100.21,22.47724378]
[1769990757762,8.9831,100.29,100.21,22.47724378]
[1769990757964,139.7139,100.3,100.21,22.47724378]
[1769990758259,8.9827,100.29,100.21,22.47724378]
[1769990758462,139.7124,100.31,100.21,22.47724378]
[1769990758667,139.741,100.29,100.19,34.33552672]
[1769990759056,8.9827,100.29,100.2,22.43283676]
[1769990759366,139.728,100.29,100.2,22.43283676]
[1769990760066,148.7111,100.29,100.2,22.43283676]
[1769990760270,139.6915,100.32,100.22,22.43283676]
[1769990760456,139.7124,100.31,100.21,11.90268996]
[1769990760663,139.7124,100.31,100.19,39.85621351]
[1769990760664,139.7591,100.27,100.19,22.42763654]
[1769990760862,139.7401,100.29,100.19,34.3303265]
[1769990761059,139.7401,100.29,100.2,22.42763654]
[1769990761265,139.7456,100.28,100.2,22.42763654]
[1769990761464,8.9863,100.25,100.17,34.3303265]
[1769990761670,139.7552,100.28,100.17,22.42763654]
[1769990761961,139.7552,100.28,100.16,151.81158996]
[1769990761962,487.7112,100.35,100.24,22.42763654]
[1769990762163,139.5962,100.39,100.28,22.42763654]
[1769990762370,139.5705,100.41,100.3,32.75735745]
[1769990762564,8.9705,100.43,100.34,10.32972091]
[1769990762870,139.5343,100.43,100.34,32.75246246]
[1769990763168,8.9739,100.39,100.31,22.42274155]
[1769990763360,139.6041,100.38,100.31,22.42274155]
[1769990763560,139.5883,100.4,100.31,22.42274155]
[1769990763764,148.5629,100.39,100.31,22.42274155]
[1769990763964,8.974,100.39,100.31,22.42274155]
[1769990764165,148.5164,100.43,100.33,32.75246246]
[1769990764357,139.5459,100.43,100.33,32.75246246]
[1769990764560,139.5613,100.41,100.33,32.75246246]
[1769990764761,139.5613,100.41,100.33,22.42274155]
[1769990765270,139.576,100.4,100.33,22.42274155]
[1769990765469,139.5638,100.41,100.33,22.42274155]
[1769990765670,139.5478,100.42,100.33,22.42274155]
[1769990765864,10.32972091,100.44,100.33,22.42274155]
[1769990765865,139.5664,100.41,100.33,22.42274155]
[1769990766067,149.88652091,100.42,100.31,22.32874204]
[1769990766362,139.5763,100.4,100.32,22.32874204]
[1769990766569,139.6041,100.38,100.29,44.55244084]
[1769990766865,10.32972091,100.4,100.29,22.32002997]
[1769990767263,139.5787,100.4,100.32,22.32002997]
[1769990767572,139.6117,100.38,100.29,22.32002997]
[1769990767769,148.5976,100.37,100.29,22.32002997]
[1769990768363,157.43,100.46,100.31,22.31998745]
[1769990768569,139.5738,100.41,100.31,22.31998745]
[1769990768863,139.509,100.45,100.34,22.36805959]
[1769990769066,139.5082,100.45,100.35,22.36805959]
[1769990769459,348.86,100.46,100.33,11.90268996]
[1769990769663,139.5753,100.4,100.31,34.27074955]
[1769990769860,139.5898,100.39,100.31,22.36805959]
[1769990770066,8.9764,100.36,100.28,22.36805959]
[1769990770363,139.6018,100.39,100.29,22.36805959]
[1769990770568,40.67545597,100.42,100.3,22.40386768]
[1769990770569,139.5718,100.41,100.3,22.40386768]
[1769990770769,139.5718,100.41,100.31,22.40386768]
[1769990771064,40.67545597,100.42,100.29,11.90268996]
[1769990771065,180.22305597,100.42,100.29,11.90268996]
[1769990771269,139.6581,100.34,100.26,34.30655764]
[1769990771470,139.6581,100.34,100.26,22.40386768]
[1769990771670,139.6581,100.34,100.26,34.30655764]
[1769990771872,139.6568,100.35,100.26,22.40386768]
[1769990772269,139.6593,100.34,100.26,34.30655764]
[1769990772473,139.6593,100.34,100.26,22.40386768]
[1769990772873,148.608,100.36,100.27,34.3079679]
[1769990773168,139.5903,100.39,100.3,11.90268996]
[1769990773569,8.9751,100.38,100.3,11.90268996]
[1769990773970,139.6322,100.36,100.28,11.90268996]
[1769990774168,139.6322,100.36,100.28,34.3079679]
[1769990774365,139.5875,100.4,100.3,34.3079679]
[1769990774672,139.6038,100.38,100.3,22.40527794]
[1769990775073,139.6038,100.38,100.3,34.3079679]
[1769990775271,139.5875,100.4,100.31,11.90268996]
[1769990775467,139.5875,100.4,100.32,11.90268996]
[1769990775671,139.5875,100.4,100.31,11.90268996]
[1769990776169,139.6051,100.38,100.3,34.3079679]
[1769990776374,139.5978,100.39,100.31,11.90268996]
[1769990776677,8.9731,100.4,100.32,34.35857635]
[1769990776871,139.5771,100.4,100.32,11.90268996]
[1769990777066,139.5771,100.4,100.3,17.42857697]
[1769990777067,139.5965,100.39,100.3,11.90268996]
[1769990777272,139.5963,100.39,100.29,34.35857635]
[1769990777566,139.6032,100.38,100.3,11.90268996]
[1769990777770,139.6032,100.38,100.29,22.45588639]
[1769990777771,8.9765,100.36,100.29,34.35857635]
[1769990777966,40.67545597,100.41,100.28,11.90268996]
[1769990778475,139.6605,100.34,100.26,34.35857635]
[1769990778971,27.15504895,100.35,100.25,11.90268996]
[1769990779176,139.6912,100.32,100.24,11.90268996]
[1769990779577,8.9817,100.3,100.23,22.49195608]
[1769990779878,139.7118,100.31,100.23,22.49195608]
[1769990780074,139.7118,100.31,100.23,34.39464604]
[1769990780271,139.7132,100.31,100.23,22.49195608]
[1769990780572,8.9837,100.28,100.21,11.90268996]
[1769990780773,139.7153,100.3,100.21,11.90268996]
[1769990780978,139.7285,100.29,100.2,34.39197302]
[1769990781173,456.68284895,100.35,100.21,11.90268996]
[1769990781374,139.744,100.28,100.2,34.39197302]
[1769990781776,139.7226,100.3,100.2,34.39197302]
[1769990781976,27.15504895,100.32,100.22,22.48928306]
[1769990781977,139.6953,100.32,100.22,22.48928306]
[1769990782175,139.6953,100.32,100.23,34.39197302]
[1769990782374,139.7023,100.31,100.23,22.48928306]
[1769990782773,342.29504895,100.35,100.23,22.48928306]
[1769990782774,139.6883,100.32,100.23,34.39197302]
[1769990782974,139.6999,100.31,100.23,34.39197302]
[1769990783673,8.9827,100.29,100.23,34.39197302]
[1769990783870,474.31674895,100.35,100.21,11.90268996]
[1769990784074,139.7326,100.29,100.2,34.45600386]
[1769990784390,139.7326,100.29,100.21,11.90268996]
[1769990784572,8.9844,100.27,100.2,34.45600386]
[1769990785670,8.983,100.29,100.21,34.46226938]
[1769990785871,139.6662,100.34,100.24,22.55957942]
[1769990786078,139.6691,100.34,100.24,22.55957942]
[1769990786375,139.6449,100.35,100.25,22.55957942]
[1769990786680,139.6449,100.35,100.26,11.90268996]
[1769990787079,139.6689,100.34,100.25,34.46226938]
[1769990787682,139.6689,100.34,100.25,22.55957942]
[1769990787978,347.88,100.38,100.23,11.90268996]
[1769990787979,8.9808,100.31,100.23,11.90268996]
[1769990788180,139.7286,100.29,100.23,11.90268996]
[1769990788376,166.78564895,100.36,100.22,11.90268996]
[1769990788377,8.9853,100.26,100.22,11.90268996]
[1769990788576,8.9853,100.26,100.19,11.90268996]
[1769990788979,139.771,100.26,100.18,11.90268996]
[1769990789180,139.7561,100.27,100.19,11.90268996]
[1769990789883,139.7288,100.29,100.2,34.52624522]
[1769990790186,139.7288,100.29,100.21,11.90268996]
[1769990790382,8.984,100.28,100.21,11.90268996]
[1769990790678,139.7417,100.28,100.2,34.52624522]
[1769990791076,8.9844,100.27,100.21,11.90268996]
[1769990791476,8.987,100.24,100.19,11.90268996]
[1769990791675,8.987,100.24,100.18,11.90268996]
[1769990791883,8.987,100.24,100.19,11.90268996]
[1769990792374,8.987,100.24,100.18,11.90268996]
[1769990792577,8.9856,100.26,100.18,34.54352932]
[1769990792781,139.7681,100.27,100.18,34.54352932]
[1769990792982,139.7681,100.27,100.19,11.90268996]
[1769990793288,139.7704,100.26,100.18,34.54352932]
[1769990793481,139.7838,100.25,100.18,34.54352932]
[1769990793688,139.7706,100.26,100.18,34.54352932]
[1769990794286,8.9872,100.24,100.18,34.54352932]
[1769990795188,139.8136,100.23,100.16,11.90268996]
[1769990795388,139.8136,100.23,100.14,34.62240163]
[1769990795983,139.8136,100.23,100.15,34.62240163]
[1769990796282,10.35345763,100.24,100.14,11.90268996]
[1769990796484,8.9916,100.19,100.12,34.62240163]
[1769990796786,29.94,100.25,100.12,34.62240163]
[1769990796787,139.8185,100.23,100.14,33.08112103]
[1769990796988,139.8185,100.23,100.15,22.7276634]
[1769990797187,8.9877,100.24,100.15,22.7276634]
[1769990797388,139.7675,100.27,100.17,22.7276634]
[1769990797591,139.7368,100.29,100.19,22.72779777]
[1769990797785,406.7083,100.32,100.22,10.35345763]
[1769990797993,139.6439,100.36,100.26,10.35345763]
[1769990798190,8.9759,100.37,100.28,19.33655763]
[1769990798489,8.9759,100.37,100.3,10.35345763]
[1769990799391,148.5924,100.37,100.28,22.72779777]
[1769990799584,8.9742,100.39,100.31,22.72444059]
[1769990799790,8.9742,100.39,100.32,10.35345763]
[1769990800180,148.5437,100.41,100.32,10.35345763]
[1769990800381,139.5068,100.45,100.34,162.38184059]
[1769990800588,139.4448,100.5,100.27,371.5323]
[1769990800589,157.3614,100.51,100.36,22.66338266]
[1769990800781,139.4648,100.48,100.37,22.66338266]
[1769990800986,139.4648,100.48,100.38,22.66338266]
[1769990801287,139.4796,100.47,100.38,22.66338266]
[1769990801593,139.507,100.45,100.38,22.66338266]
[1769990801786,139.5211,100.44,100.38,22.66338266]
[1769990801985,139.505,100.46,100.36,22.66338266]
[1769990802192,139.4723,100.48,100.38,22.66338266]
[1769990802586,148.4379,100.48,100.39,22.6520024]
[1769990802786,139.4582,100.49,100.39,22.6520024]
[1769990802985,139.4088,100.52,100.42,22.6520024]
[1769990803189,139.3936,100.54,100.43,162.1837024]
[1769990803585,148.2974,100.57,100.47,22.6520024]
[1769990803787,2.77948636,100.58,100.48,162.1093024]
[1769990803984,2.77948636,100.58,100.51,162.0712024]
[1769990804184,2.77948636,100.58,100.5,27.09540003]
[1769990804185,139.2428,100.64,100.54,22.6520024]
[1769990804388,139.2711,100.62,100.54,22.6520024]
[1769990804584,139.2973,100.6,100.51,22.66219455]
[1769990804886,166.31360003,100.66,100.51,22.66219455]
[1769990804887,139.3185,100.59,100.51,22.66219455]
[1769990805091,139.3115,100.59,100.51,22.66219455]
[1769990805390,139.2861,100.61,100.51,22.66219455]
[1769990805586,139.3024,100.6,100.51,22.66219455]
[1769990805786,139.3253,100.58,100.51,22.66219455]
[1769990805987,139.3116,100.59,100.51,22.66219455]
[1769990806184,139.3255,100.58,100.51,22.66219455]
[1769990806388,148.2642,100.6,100.51,22.66219455]
[1769990806589,139.314,100.59,100.51,22.66219455]
[1769990806786,139.314,100.59,100.49,22.62548178]
[1769990806988,139.3249,100.58,100.49,22.62548178]
[1769990807186,8.9552,100.6,100.49,22.62548178]
[1769990807187,139.3141,100.59,100.49,22.62548178]
[1769990807791,139.2704,100.62,100.52,22.62548178]
[1769990808089,139.2567,100.63,100.53,22.62548178]
[1769990808289,148.1655,100.66,100.55,161.99068178]
[1769990808592,139.2424,100.64,100.56,22.62548178]
[1769990808789,139.2559,100.63,100.56,22.62548178]
[1769990808993,139.2559,100.63,100.53,22.65850098]
[1769990809197,139.2166,100.66,100.56,22.65850098]
[1769990809395,139.235,100.65,100.56,22.65850098]
[1769990810487,139.1873,100.68,100.58,22.65850098]
[1769990810687,139.1647,100.7,100.6,22.65102658]
[1769990810891,139.1596,100.7,100.62,22.65102658]
[1769990811092,139.1851,100.69,100.62,22.65102658]
[1769990811288,139.1175,100.73,100.62,22.65102658]
[1769990811585,139.1175,100.73,100.63,22.65102658]
[1769990811586,139.1178,100.73,100.63,22.65102658]
[1769990811784,139.1315,100.72,100.63,22.65102658]
[1769990811984,139.1467,100.71,100.63,22.65102658]
[1769990812195,139.1329,100.72,100.63,22.65102658]
[1769990812391,139.1185,100.73,100.63,22.65102658]
[1769990812792,139.1336,100.72,100.63,22.65102658]
[1769990813396,8.9433,100.73,100.63,22.65102658]
[1769990813598,139.0525,100.78,100.67,22.60448767]
[1769990813796,2.77948636,100.8,100.61,229.58]